[Event "December 12 Early 2023"]
[Site "https://www.chess.com"]
[Date "2023.12.12"]
[Round "4"]
[White "Colbow, Collin"]
[Black "Goh, Wei Ming Kevin"]
[Result "0-1"]
[Board "66"]
[TimeControl "180+1"]
[WhiteFideId "16201132"]
[BlackFideId "5800706"]
[WhiteElo "2536"]
[BlackElo "2758"]
[WhiteTeam "GER"]
[BlackTeam "SGP"]
[WhiteClock "0:00:00"]
[BlackClock "0:01:46"]

1. b3 {[%clk 0:03:00]}  e5 {[%clk 0:02:57]} 2. Bb2 {[%clk 0:03:01]}  Nc6 {[%clk 0:02:58]} 3. e3 {[%clk 0:03:01]}  Nf6 {[%clk 0:02:58]} 4. c4 {[%clk 0:03:01]}  d5 {[%clk 0:02:58]} 5. cxd5 {[%clk 0:03:00]}  Nxd5 {[%clk 0:02:59]} 6. Nc3 {[%clk 0:02:57]}  Ndb4 {[%clk 0:02:58]} 7. Qb1 {[%clk 0:02:11]}  Nd4 {[%clk 0:02:35]} 8. exd4 {[%clk 0:02:08]}  exd4 {[%clk 0:02:35]} 9. Qe4+ {[%clk 0:01:40]}  Be7 {[%clk 0:02:23]} 10. Nb5 {[%clk 0:01:24]}  f5 {[%clk 0:02:21]} 11. Qe5 {[%clk 0:01:05]}  O-O {[%clk 0:02:16]} 12. Bc4+ {[%clk 0:01:02]}  Kh8 {[%clk 0:02:16]} 13. O-O-O {[%clk 0:00:33]}  c6 {[%clk 0:01:56]} 14. Nc7 {[%clk 0:00:12]}  Bf6 {[%clk 0:01:48]} 15. Qg3 {[%clk 0:00:02]}  b5 {[%clk 0:01:48]} 16. Nxa8 {[%clk 0:00:02]}  bxc4 {[%clk 0:01:48]} 17. Qc7 {[%clk 0:00:01]}  Nd3+ {[%clk 0:01:45]} 18. Kb1 {[%clk 0:00:00]}  Qd5 {[%clk 0:01:46]} 0-1

[Event "December 12 Early 2023"]
[Site "https://www.chess.com"]
[Date "2023.12.12"]
[Round "4"]
[White "Kozak, Antoni"]
[Black "Manukyan, Artyom"]
[Result "1-0"]
[Board "71"]
[TimeControl "180+1"]
[WhiteFideId "21832030"]
[BlackFideId "13305786"]
[WhiteElo "2744"]
[BlackElo "2522"]
[WhiteTeam "POL"]
[BlackTeam "ARM"]
[WhiteClock "0:00:26"]
[BlackClock "0:00:22"]

1. Nf3 {[%clk 0:03:00]}  d5 {[%clk 0:03:00]} 2. e3 {[%clk 0:02:59]}  Nf6 {[%clk 0:03:00]} 3. c4 {[%clk 0:02:59]}  e6 {[%clk 0:03:00]} 4. b3 {[%clk 0:03:00]}  Be7 {[%clk 0:03:00]} 5. Bb2 {[%clk 0:03:00]}  O-O {[%clk 0:03:01]} 6. Nc3 {[%clk 0:03:00]}  dxc4 {[%clk 0:03:01]} 7. Bxc4 {[%clk 0:02:59]}  a6 {[%clk 0:02:58]} 8. Be2 {[%clk 0:02:58]}  b5 {[%clk 0:02:58]} 9. a4 {[%clk 0:02:55]}  b4 {[%clk 0:02:57]} 10. Nb1 {[%clk 0:02:55]}  Bb7 {[%clk 0:02:57]} 11. d3 {[%clk 0:02:55]}  Nbd7 {[%clk 0:02:57]} 12. Nbd2 {[%clk 0:02:56]}  Nc5 {[%clk 0:02:52]} 13. Nc4 {[%clk 0:02:44]}  a5 {[%clk 0:02:49]} 14. Rc1 {[%clk 0:02:42]}  Nd5 {[%clk 0:02:48]} 15. O-O {[%clk 0:02:35]}  Bf6 {[%clk 0:02:47]} 16. d4 {[%clk 0:02:34]}  Ne4 {[%clk 0:02:45]} 17. Qc2 {[%clk 0:02:27]}  Nec3 {[%clk 0:02:43]} 18. Bd3 {[%clk 0:02:27]}  g6 {[%clk 0:02:36]} 19. Rfe1 {[%clk 0:02:13]}  Bg7 {[%clk 0:02:33]} 20. Bf1 {[%clk 0:02:07]}  f5 {[%clk 0:02:29]} 21. Nfe5 {[%clk 0:02:05]}  Qh4 {[%clk 0:02:23]} 22. f3 {[%clk 0:02:00]}  Rad8 {[%clk 0:02:18]} 23. Qf2 {[%clk 0:01:52]}  Qxf2+ {[%clk 0:01:57]} 24. Kxf2 {[%clk 0:01:52]}  f4 {[%clk 0:01:58]} 25. exf4 {[%clk 0:01:41]}  Nxf4 {[%clk 0:01:56]} 26. Nxa5 {[%clk 0:01:35]}  Ba8 {[%clk 0:01:28]} 27. Nac6 {[%clk 0:01:23]}  Bxe5 {[%clk 0:01:19]} 28. Nxe5 {[%clk 0:01:22]}  Rxd4 {[%clk 0:01:20]} 29. Bxc3 {[%clk 0:01:20]}  bxc3 {[%clk 0:01:20]} 30. Rxc3 {[%clk 0:01:17]}  Rd2+ {[%clk 0:01:20]} 31. Kg1 {[%clk 0:01:15]}  Nd5 {[%clk 0:01:11]} 32. Rd3 {[%clk 0:01:11]}  Rb2 {[%clk 0:01:11]} 33. Nc4 {[%clk 0:01:10]}  Ra2 {[%clk 0:01:10]} 34. Rd2 {[%clk 0:01:09]}  Rxd2 {[%clk 0:01:03]} 35. Nxd2 {[%clk 0:01:10]}  Kf7 {[%clk 0:01:03]} 36. a5 {[%clk 0:01:08]}  Rb8 {[%clk 0:01:03]} 37. Bc4 {[%clk 0:01:05]}  Bc6 {[%clk 0:01:02]} 38. Ne4 {[%clk 0:01:05]}  Ra8 {[%clk 0:00:59]} 39. a6 {[%clk 0:01:01]}  Nb6 {[%clk 0:00:56]} 40. Ng5+ {[%clk 0:01:00]}  Ke7 {[%clk 0:00:47]} 41. Nxe6 {[%clk 0:00:37]}  Kd6 {[%clk 0:00:38]} 42. Rd1+ {[%clk 0:00:35]}  Ke5 {[%clk 0:00:35]} 43. Nxc7 {[%clk 0:00:35]}  Rc8 {[%clk 0:00:34]} 44. Nb5 {[%clk 0:00:29]}  Ra8 {[%clk 0:00:26]} 45. Re1+ {[%clk 0:00:26]}  Kf6 {[%clk 0:00:22]} 46. Re6+ {[%clk 0:00:26]} 1-0

[Event "December 12 Early 2023"]
[Site "https://www.chess.com"]
[Date "2023.12.12"]
[Round "4"]
[White "Play, Gilles"]
[Black "Rychkov, Oleg"]
[Result "0-1"]
[Board "72"]
[TimeControl "180+1"]
[WhiteFideId "45130892"]
[BlackFideId "4122852"]
[WhiteElo "2522"]
[BlackElo "2743"]
[WhiteTeam "FRA"]
[BlackTeam "RUS"]
[WhiteClock "0:00:00"]
[BlackClock "0:00:40"]

1. e4 {[%clk 0:02:57]}  e5 {[%clk 0:02:59]} 2. Nf3 {[%clk 0:02:56]}  Nc6 {[%clk 0:03:00]} 3. c3 {[%clk 0:02:56]}  d5 {[%clk 0:02:53]} 4. Qa4 {[%clk 0:02:55]}  Ne7 {[%clk 0:02:33]} 5. Nxe5 {[%clk 0:02:51]}  dxe4 {[%clk 0:02:31]} 6. Bc4 {[%clk 0:02:47]}  Be6 {[%clk 0:02:26]} 7. Bxe6 {[%clk 0:02:42]}  fxe6 {[%clk 0:02:25]} 8. Qxe4 {[%clk 0:02:36]}  Nxe5 {[%clk 0:02:18]} 9. Qxe5 {[%clk 0:02:36]}  Qd7 {[%clk 0:02:19]} 10. O-O {[%clk 0:02:28]}  Nc6 {[%clk 0:02:19]} 11. Qe4 {[%clk 0:02:27]}  O-O-O {[%clk 0:02:17]} 12. d4 {[%clk 0:02:23]}  Bd6 {[%clk 0:02:16]} 13. Re1 {[%clk 0:02:15]}  Kb8 {[%clk 0:02:14]} 14. Bf4 {[%clk 0:02:07]}  Bxf4 {[%clk 0:02:05]} 15. Qxf4 {[%clk 0:02:08]}  Rhf8 {[%clk 0:02:05]} 16. Qe4 {[%clk 0:02:01]}  Rde8 {[%clk 0:02:02]} 17. Nd2 {[%clk 0:01:59]}  h6 {[%clk 0:01:57]} 18. b4 {[%clk 0:01:51]}  e5 {[%clk 0:01:49]} 19. b5 {[%clk 0:01:32]}  Nd8 {[%clk 0:01:47]} 20. d5 {[%clk 0:01:29]}  Qxb5 {[%clk 0:01:42]} 21. Rab1 {[%clk 0:01:22]}  Qd7 {[%clk 0:01:41]} 22. Nc4 {[%clk 0:01:19]}  Nf7 {[%clk 0:01:17]} 23. Na5 {[%clk 0:01:01]}  Nd6 {[%clk 0:01:14]} 24. Qb4 {[%clk 0:01:01]}  Ka8 {[%clk 0:01:11]} 25. Nxb7 {[%clk 0:00:40]}  Rb8 {[%clk 0:01:10]} 26. Nc5 {[%clk 0:00:41]}  Qf5 {[%clk 0:01:05]} 27. f3 {[%clk 0:00:15]}  Rxb4 {[%clk 0:01:03]} 28. Rxb4 {[%clk 0:00:16]}  Rb8 {[%clk 0:00:59]} 29. Rxb8+ {[%clk 0:00:13]}  Kxb8 {[%clk 0:00:58]} 30. Rxe5 {[%clk 0:00:14]}  Qb1+ {[%clk 0:00:53]} 31. Kf2 {[%clk 0:00:13]}  Qxa2+ {[%clk 0:00:50]} 32. Kg3 {[%clk 0:00:13]}  a5 {[%clk 0:00:44]} 33. h4 {[%clk 0:00:02]}  a4 {[%clk 0:00:43]} 34. h5 {[%clk 0:00:02]}  a3 {[%clk 0:00:43]} 35. Nd3 {[%clk 0:00:00]}  Qc4 {[%clk 0:00:40]} 0-1

[Event "December 12 Early 2023"]
[Site "https://www.chess.com"]
[Date "2023.12.12"]
[Round "4"]
[White "Iljin, Timofey"]
[Black "Mindlin, Alon"]
[Result "0-1"]
[Board "76"]
[TimeControl "180+1"]
[WhiteFideId "14110180"]
[BlackFideId "2800071"]
[WhiteElo "2496"]
[BlackElo "2732"]
[WhiteTeam "UKR"]
[BlackTeam "ISR"]
[WhiteClock "0:00:00"]
[BlackClock "0:02:04"]

1. e4 {[%clk 0:02:59]}  e5 {[%clk 0:03:00]} 2. Nf3 {[%clk 0:02:58]}  Nc6 {[%clk 0:02:58]} 3. d4 {[%clk 0:02:58]}  exd4 {[%clk 0:02:59]} 4. Bc4 {[%clk 0:02:59]}  Bc5 {[%clk 0:02:58]} 5. O-O {[%clk 0:02:57]}  Nf6 {[%clk 0:02:56]} 6. c3 {[%clk 0:02:54]}  dxc3 {[%clk 0:02:35]} 7. Nxc3 {[%clk 0:02:55]}  d6 {[%clk 0:02:35]} 8. h3 {[%clk 0:02:54]}  h6 {[%clk 0:02:33]} 9. Bf4 {[%clk 0:02:47]}  Be6 {[%clk 0:02:31]} 10. Bxe6 {[%clk 0:02:43]}  fxe6 {[%clk 0:02:30]} 11. Qb3 {[%clk 0:02:42]}  e5 {[%clk 0:02:23]} 12. Qxb7 {[%clk 0:02:15]}  Ne7 {[%clk 0:02:22]} 13. Bxe5 {[%clk 0:01:56]}  dxe5 {[%clk 0:02:15]} 14. Qb5+ {[%clk 0:01:34]}  Nd7 {[%clk 0:02:14]} 15. Nxe5 {[%clk 0:00:00]}  Rb8 {[%clk 0:02:04]} 0-1

[Event "December 12 Early 2023"]
[Site "https://www.chess.com"]
[Date "2023.12.12"]
[Round "4"]
[White "Arslanov, Shamil"]
[Black "Berezin, Viktor"]
[Result "1-0"]
[Board "77"]
[TimeControl "180+1"]
[WhiteFideId "4192826"]
[BlackFideId "14107872"]
[WhiteElo "2719"]
[BlackElo "2492"]
[WhiteTeam "RUS"]
[BlackTeam "UKR"]
[WhiteClock "0:01:59"]
[BlackClock "0:01:32"]

1. e4 {[%clk 0:03:00]}  g6 {[%clk 0:02:59]} 2. Bc4 {[%clk 0:02:58]}  Bg7 {[%clk 0:02:59]} 3. Qf3 {[%clk 0:02:58]}  e6 {[%clk 0:02:54]} 4. d4 {[%clk 0:02:58]}  Nc6 {[%clk 0:02:46]} 5. c3 {[%clk 0:02:51]}  Nge7 {[%clk 0:02:45]} 6. h4 {[%clk 0:02:40]}  h5 {[%clk 0:02:32]} 7. Bg5 {[%clk 0:02:25]}  d5 {[%clk 0:02:24]} 8. Bd3 {[%clk 0:02:18]}  dxe4 {[%clk 0:02:12]} 9. Bxe4 {[%clk 0:02:15]}  Qd6 {[%clk 0:02:08]} 10. Nd2 {[%clk 0:02:03]}  Nf5 {[%clk 0:02:06]} 11. Nc4 {[%clk 0:01:59]}  Qf8 {[%clk 0:01:32]} 12. Bxc6+ {[%clk 0:01:59]} 1-0

[Event "December 12 Early 2023"]
[Site "https://www.chess.com"]
[Date "2023.12.12"]
[Round "4"]
[White "Rosen, Eric"]
[Black "Shevchuk, Olexandr"]
[Result "0-1"]
[Board "78"]
[TimeControl "180+1"]
[WhiteFideId "2032562"]
[BlackFideId "14113775"]
[WhiteElo "2705"]
[BlackElo "2461"]
[WhiteTeam "USA"]
[BlackTeam "UKR"]
[WhiteClock "0:00:00"]
[BlackClock "0:00:29"]

1. e4 {[%clk 0:03:00]}  c5 {[%clk 0:03:00]} 2. Nc3 {[%clk 0:02:59]}  e6 {[%clk 0:03:00]} 3. Nf3 {[%clk 0:02:59]}  Nc6 {[%clk 0:03:00]} 4. d4 {[%clk 0:02:59]}  cxd4 {[%clk 0:03:01]} 5. Nxd4 {[%clk 0:03:00]}  Qc7 {[%clk 0:03:01]} 6. Ncb5 {[%clk 0:03:00]}  Qb8 {[%clk 0:03:01]} 7. Bd3 {[%clk 0:03:01]}  Nf6 {[%clk 0:02:58]} 8. Nxc6 {[%clk 0:03:01]}  bxc6 {[%clk 0:02:59]} 9. Nc3 {[%clk 0:03:02]}  d5 {[%clk 0:02:58]} 10. O-O {[%clk 0:02:59]}  Be7 {[%clk 0:02:57]} 11. b3 {[%clk 0:02:55]}  a5 {[%clk 0:02:56]} 12. Qe2 {[%clk 0:02:52]}  O-O {[%clk 0:02:54]} 13. f4 {[%clk 0:02:36]}  Ba6 {[%clk 0:02:42]} 14. f5 {[%clk 0:02:09]}  Bb4 {[%clk 0:02:34]} 15. Bd2 {[%clk 0:02:01]}  Bxc3 {[%clk 0:02:13]} 16. Bxc3 {[%clk 0:01:59]}  Nxe4 {[%clk 0:02:14]} 17. Bxa5 {[%clk 0:01:02]}  Bxd3 {[%clk 0:01:34]} 18. cxd3 {[%clk 0:01:02]}  Nd6 {[%clk 0:01:34]} 19. Bc3 {[%clk 0:00:28]}  Nxf5 {[%clk 0:01:34]} 20. g4 {[%clk 0:00:28]}  Ne7 {[%clk 0:01:23]} 21. Kg2 {[%clk 0:00:19]}  Ng6 {[%clk 0:01:17]} 22. Qf2 {[%clk 0:00:15]}  e5 {[%clk 0:01:09]} 23. Bd2 {[%clk 0:00:13]}  Qc8 {[%clk 0:01:09]} 24. h3 {[%clk 0:00:13]}  Qa6 {[%clk 0:01:09]} 25. Qg3 {[%clk 0:00:10]}  e4 {[%clk 0:01:02]} 26. dxe4 {[%clk 0:00:07]}  Qe2+ {[%clk 0:01:01]} 27. Rf2 {[%clk 0:00:06]}  Qxe4+ {[%clk 0:01:01]} 28. Kh2 {[%clk 0:00:07]}  Rae8 {[%clk 0:00:55]} 29. h4 {[%clk 0:00:07]}  Ne5 {[%clk 0:00:52]} 30. Rg1 {[%clk 0:00:05]}  Nd3 {[%clk 0:00:46]} 31. Rfg2 {[%clk 0:00:04]}  Qe5 {[%clk 0:00:43]} 32. h5 {[%clk 0:00:02]}  h6 {[%clk 0:00:42]} 33. Qxe5 {[%clk 0:00:02]}  Nxe5 {[%clk 0:00:42]} 34. Kg3 {[%clk 0:00:02]}  Ra8 {[%clk 0:00:40]} 35. Bf4 {[%clk 0:00:02]}  Nd7 {[%clk 0:00:37]} 36. Rc1 {[%clk 0:00:01]}  c5 {[%clk 0:00:35]} 37. Bd6 {[%clk 0:00:02]}  Rfc8 {[%clk 0:00:35]} 38. Rd2 {[%clk 0:00:02]}  d4 {[%clk 0:00:35]} 39. a4 {[%clk 0:00:03]}  Rc6 {[%clk 0:00:35]} 40. Bf4 {[%clk 0:00:03]}  Ra7 {[%clk 0:00:34]} 41. Rxd4 {[%clk 0:00:03]}  Nf6 {[%clk 0:00:31]} 42. Rd8+ {[%clk 0:00:03]}  Kh7 {[%clk 0:00:32]} 43. Rd3 {[%clk 0:00:01]}  Rb7 {[%clk 0:00:30]} 44. Kf3 {[%clk 0:00:02]}  Rb4 {[%clk 0:00:30]} 45. Rdc3 {[%clk 0:00:00]}  Nd5 {[%clk 0:00:29]} 0-1

[Event "December 12 Early 2023"]
[Site "https://www.chess.com"]
[Date "2023.12.12"]
[Round "4"]
[White "Pourkashiyan, Atousa"]
[Black "Chinguun, Sumiya"]
[Result "0-1"]
[Board "80"]
[TimeControl "180+1"]
[WhiteFideId "12502014"]
[BlackFideId "4902572"]
[WhiteElo "2460"]
[BlackElo "2688"]
[WhiteTeam "USA"]
[BlackTeam "MGL"]
[WhiteClock "0:00:00"]
[BlackClock "0:02:44"]

1. e4 {[%clk 0:02:56]}  c5 {[%clk 0:02:59]} 2. Nf3 {[%clk 0:02:56]}  Nc6 {[%clk 0:02:59]} 3. d4 {[%clk 0:02:56]}  cxd4 {[%clk 0:02:59]} 4. Nxd4 {[%clk 0:02:57]}  g6 {[%clk 0:03:00]} 5. c4 {[%clk 0:02:56]}  Nf6 {[%clk 0:03:01]} 6. Nc3 {[%clk 0:02:56]}  Nxd4 {[%clk 0:03:01]} 7. Qxd4 {[%clk 0:02:56]}  d6 {[%clk 0:03:01]} 8. Bg5 {[%clk 0:02:53]}  Bg7 {[%clk 0:03:02]} 9. Qd2 {[%clk 0:02:53]}  O-O {[%clk 0:03:02]} 10. Be2 {[%clk 0:02:51]}  a5 {[%clk 0:03:02]} 11. O-O {[%clk 0:02:50]}  a4 {[%clk 0:03:02]} 12. Bd3 {[%clk 0:02:38]}  Qa5 {[%clk 0:03:02]} 13. Bh6 {[%clk 0:02:30]}  Be6 {[%clk 0:02:58]} 14. Bxg7 {[%clk 0:02:29]}  Kxg7 {[%clk 0:02:57]} 15. Rac1 {[%clk 0:02:15]}  Rfc8 {[%clk 0:02:56]} 16. b3 {[%clk 0:02:15]}  axb3 {[%clk 0:02:56]} 17. axb3 {[%clk 0:02:16]}  Qb4 {[%clk 0:02:56]} 18. f4 {[%clk 0:01:53]}  Qxb3 {[%clk 0:02:51]} 19. Rb1 {[%clk 0:01:50]}  Qa3 {[%clk 0:02:51]} 20. Rxb7 {[%clk 0:01:43]}  Bxc4 {[%clk 0:02:49]} 21. e5 {[%clk 0:00:38]}  dxe5 {[%clk 0:02:48]} 22. fxe5 {[%clk 0:00:38]}  Qc5+ {[%clk 0:02:49]} 23. Kh1 {[%clk 0:00:38]}  Qxe5 {[%clk 0:02:49]} 24. Bxc4 {[%clk 0:00:34]}  Rxc4 {[%clk 0:02:49]} 25. Ne2 {[%clk 0:00:25]}  Ra1 {[%clk 0:02:48]} 26. Rbb1 {[%clk 0:00:23]}  Rxb1 {[%clk 0:02:48]} 27. Rxb1 {[%clk 0:00:23]}  Ng4 {[%clk 0:02:48]} 28. Ng3 {[%clk 0:00:22]}  Nxh2 {[%clk 0:02:45]} 29. Kxh2 {[%clk 0:00:21]}  Rh4+ {[%clk 0:02:44]} 30. Kg1 {[%clk 0:00:21]}  Qxg3 {[%clk 0:02:45]} 31. Qb2+ {[%clk 0:00:17]}  e5 {[%clk 0:02:45]} 32. Qc2 {[%clk 0:00:00]}  Qe3+ {[%clk 0:02:44]} 0-1

[Event "December 12 Early 2023"]
[Site "https://www.chess.com"]
[Date "2023.12.12"]
[Round "4"]
[White "Dmitrenko, Viktor"]
[Black "Volkov, Maksim"]
[Result "0-1"]
[Board "81"]
[TimeControl "180+1"]
[WhiteFideId "14110270"]
[BlackFideId "54123070"]
[WhiteElo "2443"]
[BlackElo "2679"]
[WhiteTeam "UKR"]
[BlackTeam "RUS"]
[WhiteClock "0:00:02"]
[BlackClock "0:00:31"]

1. d4 {[%clk 0:03:00]}  Nf6 {[%clk 0:02:59]} 2. Nf3 {[%clk 0:02:59]}  e6 {[%clk 0:02:59]} 3. c4 {[%clk 0:02:56]}  d5 {[%clk 0:02:59]} 4. Nc3 {[%clk 0:02:55]}  c5 {[%clk 0:02:56]} 5. cxd5 {[%clk 0:02:53]}  cxd4 {[%clk 0:02:55]} 6. Qxd4 {[%clk 0:02:50]}  exd5 {[%clk 0:02:55]} 7. Qa4+ {[%clk 0:02:44]}  Bd7 {[%clk 0:02:51]} 8. Qd1 {[%clk 0:02:42]}  Nc6 {[%clk 0:02:50]} 9. e3 {[%clk 0:02:28]}  Be7 {[%clk 0:02:44]} 10. Be2 {[%clk 0:02:27]}  O-O {[%clk 0:02:43]} 11. O-O {[%clk 0:02:27]}  Be6 {[%clk 0:02:41]} 12. b3 {[%clk 0:02:26]}  Rc8 {[%clk 0:02:39]} 13. Bb2 {[%clk 0:02:25]}  a6 {[%clk 0:02:39]} 14. Rc1 {[%clk 0:02:21]}  Bd6 {[%clk 0:02:39]} 15. Na4 {[%clk 0:02:12]}  Ne4 {[%clk 0:02:38]} 16. Nd4 {[%clk 0:02:03]}  Bd7 {[%clk 0:02:16]} 17. Nc3 {[%clk 0:01:55]}  Nxc3 {[%clk 0:02:07]} 18. Bxc3 {[%clk 0:01:54]}  Ne5 {[%clk 0:01:55]} 19. Nf3 {[%clk 0:01:42]}  Nxf3+ {[%clk 0:01:30]} 20. Bxf3 {[%clk 0:01:43]}  Ba3 {[%clk 0:01:30]} 21. Qd4 {[%clk 0:01:39]}  Qf6 {[%clk 0:01:30]} 22. Qxf6 {[%clk 0:00:53]}  gxf6 {[%clk 0:01:31]} 23. Rc2 {[%clk 0:00:48]}  Bf5 {[%clk 0:01:30]} 24. Bb2 {[%clk 0:00:46]}  Rxc2 {[%clk 0:01:27]} 25. Bxa3 {[%clk 0:00:46]}  Rd8 {[%clk 0:01:20]} 26. Be7 {[%clk 0:00:46]}  Rd7 {[%clk 0:01:19]} 27. Bxf6 {[%clk 0:00:46]}  Rxa2 {[%clk 0:01:20]} 28. g4 {[%clk 0:00:37]}  Be6 {[%clk 0:01:01]} 29. Rc1 {[%clk 0:00:35]}  Rd6 {[%clk 0:01:02]} 30. g5 {[%clk 0:00:31]}  Rc6 {[%clk 0:01:00]} 31. Rd1 {[%clk 0:00:29]}  Rcc2 {[%clk 0:00:45]} 32. Bxd5 {[%clk 0:00:27]}  Rd2 {[%clk 0:00:45]} 33. Rxd2 {[%clk 0:00:25]}  Rxd2 {[%clk 0:00:46]} 34. Bxb7 {[%clk 0:00:24]}  a5 {[%clk 0:00:43]} 35. e4 {[%clk 0:00:16]}  Bxb3 {[%clk 0:00:41]} 36. Kg2 {[%clk 0:00:16]}  a4 {[%clk 0:00:40]} 37. Kf3 {[%clk 0:00:15]}  a3 {[%clk 0:00:39]} 38. Ke3 {[%clk 0:00:15]}  Rc2 {[%clk 0:00:37]} 39. h4 {[%clk 0:00:12]}  a2 {[%clk 0:00:37]} 40. f4 {[%clk 0:00:12]}  Rc1 {[%clk 0:00:36]} 41. f5 {[%clk 0:00:10]}  a1=Q {[%clk 0:00:35]} 42. Bxa1 {[%clk 0:00:11]}  Rxa1 {[%clk 0:00:36]} 43. e5 {[%clk 0:00:11]}  Ra5 {[%clk 0:00:32]} 44. Kf4 {[%clk 0:00:11]}  Ra4+ {[%clk 0:00:33]} 45. Kg3 {[%clk 0:00:11]}  Bc2 {[%clk 0:00:31]} 46. f6 {[%clk 0:00:09]}  Bf5 {[%clk 0:00:31]} 47. Bd5 {[%clk 0:00:07]}  Rg4+ {[%clk 0:00:30]} 48. Kf3 {[%clk 0:00:02]}  Rxh4 {[%clk 0:00:31]} 0-1

[Event "December 12 Early 2023"]
[Site "https://www.chess.com"]
[Date "2023.12.12"]
[Round "4"]
[White "Nagare Kaivalya Sandip"]
[Black "Goldin, Roman"]
[Result "1-0"]
[Board "82"]
[TimeControl "180+1"]
[WhiteFideId "25957929"]
[BlackFideId "2803860"]
[WhiteElo "2677"]
[BlackElo "2443"]
[WhiteTeam "IND"]
[BlackTeam "ISR"]
[WhiteClock "0:02:12"]
[BlackClock "0:00:00"]

1. e4 {[%clk 0:02:58]}  Nc6 {[%clk 0:02:58]} 2. d4 {[%clk 0:02:57]}  e5 {[%clk 0:02:58]} 3. d5 {[%clk 0:02:56]}  Nce7 {[%clk 0:02:58]} 4. Nf3 {[%clk 0:02:55]}  Ng6 {[%clk 0:02:58]} 5. g3 {[%clk 0:02:48]}  Nf6 {[%clk 0:02:52]} 6. Qe2 {[%clk 0:02:45]}  c6 {[%clk 0:02:42]} 7. c4 {[%clk 0:02:44]}  Bc5 {[%clk 0:02:35]} 8. Bg2 {[%clk 0:02:44]}  O-O {[%clk 0:02:23]} 9. O-O {[%clk 0:02:43]}  a6 {[%clk 0:02:19]} 10. Nc3 {[%clk 0:02:40]}  b5 {[%clk 0:02:18]} 11. Be3 {[%clk 0:02:35]}  Qb6 {[%clk 0:02:12]} 12. Bg5 {[%clk 0:02:30]}  Ne8 {[%clk 0:02:01]} 13. a3 {[%clk 0:02:29]}  f6 {[%clk 0:01:59]} 14. Bd2 {[%clk 0:02:29]}  bxc4 {[%clk 0:01:41]} 15. Na4 {[%clk 0:02:28]}  Qb5 {[%clk 0:01:18]} 16. Nxc5 {[%clk 0:02:29]}  Qxc5 {[%clk 0:01:16]} 17. Bb4 {[%clk 0:02:29]}  Qb5 {[%clk 0:01:14]} 18. Bxf8 {[%clk 0:02:29]}  Nxf8 {[%clk 0:01:14]} 19. Rfc1 {[%clk 0:02:21]}  cxd5 {[%clk 0:01:13]} 20. exd5 {[%clk 0:02:20]}  Nd6 {[%clk 0:01:06]} 21. Nd2 {[%clk 0:02:19]}  Qxb2 {[%clk 0:01:05]} 22. Rab1 {[%clk 0:02:18]}  Qxa3 {[%clk 0:01:04]} 23. Nxc4 {[%clk 0:02:18]}  Nxc4 {[%clk 0:01:01]} 24. Qxc4 {[%clk 0:02:19]}  d6 {[%clk 0:00:58]} 25. Qc6 {[%clk 0:02:19]}  Bf5 {[%clk 0:00:17]} 26. Qxa8 {[%clk 0:02:12]}  Bxb1 {[%clk 0:00:05]} 27. Rxb1 {[%clk 0:02:12]}  h5 {[%clk 0:00:00]} 28. Rb8 {[%clk 0:02:12]} 1-0

[Event "December 12 Early 2023"]
[Site "https://www.chess.com"]
[Date "2023.12.12"]
[Round "4"]
[White "Latorre, Vincent"]
[Black "Leiva, Gianmarco"]
[Result "0-1"]
[Board "85"]
[TimeControl "180+1"]
[WhiteFideId "2636891"]
[BlackFideId "3804399"]
[WhiteElo "2434"]
[BlackElo "2666"]
[WhiteTeam "CAN"]
[BlackTeam "PER"]
[WhiteClock "0:00:01"]
[BlackClock "0:00:44"]

1. e4 {[%clk 0:03:00]}  c5 {[%clk 0:02:58]} 2. Nf3 {[%clk 0:02:56]}  d6 {[%clk 0:02:58]} 3. d4 {[%clk 0:02:55]}  cxd4 {[%clk 0:02:58]} 4. Nxd4 {[%clk 0:02:56]}  Nf6 {[%clk 0:02:58]} 5. Nc3 {[%clk 0:02:53]}  a6 {[%clk 0:02:58]} 6. h4 {[%clk 0:02:49]}  Nc6 {[%clk 0:02:55]} 7. h5 {[%clk 0:02:35]}  e5 {[%clk 0:02:48]} 8. Nb3 {[%clk 0:02:30]}  Be6 {[%clk 0:02:47]} 9. h6 {[%clk 0:02:28]}  d5 {[%clk 0:02:44]} 10. hxg7 {[%clk 0:02:16]}  Bxg7 {[%clk 0:02:44]} 11. exd5 {[%clk 0:02:16]}  Nxd5 {[%clk 0:02:45]} 12. Nxd5 {[%clk 0:02:16]}  Qxd5 {[%clk 0:02:26]} 13. Qxd5 {[%clk 0:02:12]}  Bxd5 {[%clk 0:02:25]} 14. c4 {[%clk 0:02:06]}  Be4 {[%clk 0:02:16]} 15. Nc5 {[%clk 0:01:54]}  Bg6 {[%clk 0:02:16]} 16. Bd3 {[%clk 0:01:24]}  O-O-O {[%clk 0:02:13]} 17. Bxg6 {[%clk 0:00:54]}  hxg6 {[%clk 0:02:14]} 18. O-O {[%clk 0:00:50]}  Nd4 {[%clk 0:02:11]} 19. g3 {[%clk 0:00:42]}  f5 {[%clk 0:02:01]} 20. Be3 {[%clk 0:00:37]}  Nf3+ {[%clk 0:02:01]} 21. Kg2 {[%clk 0:00:37]}  e4 {[%clk 0:02:02]} 22. Rh1 {[%clk 0:00:37]}  Bxb2 {[%clk 0:01:55]} 23. Rab1 {[%clk 0:00:34]}  Ba3 {[%clk 0:01:51]} 24. Ne6 {[%clk 0:00:28]}  Rde8 {[%clk 0:01:48]} 25. Rxh8 {[%clk 0:00:25]}  Rxh8 {[%clk 0:01:48]} 26. Rh1 {[%clk 0:00:20]}  Rxh1 {[%clk 0:01:29]} 27. Kxh1 {[%clk 0:00:21]}  Ne5 {[%clk 0:01:20]} 28. c5 {[%clk 0:00:21]}  Kd7 {[%clk 0:01:20]} 29. Nf4 {[%clk 0:00:13]}  Kc6 {[%clk 0:01:14]} 30. Ne6 {[%clk 0:00:08]}  Ng4 {[%clk 0:01:11]} 31. Nf8 {[%clk 0:00:05]}  Bxc5 {[%clk 0:01:06]} 32. Nxg6 {[%clk 0:00:02]}  Bxe3 {[%clk 0:01:03]} 33. fxe3 {[%clk 0:00:02]}  Nxe3 {[%clk 0:01:01]} 34. Kg1 {[%clk 0:00:02]}  Kd5 {[%clk 0:00:57]} 35. Kf2 {[%clk 0:00:03]}  Nd1+ {[%clk 0:00:57]} 36. Ke2 {[%clk 0:00:03]}  Nc3+ {[%clk 0:00:58]} 37. Ke3 {[%clk 0:00:03]}  Nxa2 {[%clk 0:00:59]} 38. Kf4 {[%clk 0:00:04]}  Ke6 {[%clk 0:00:58]} 39. Nf8+ {[%clk 0:00:04]}  Kf7 {[%clk 0:00:57]} 40. Nd7 {[%clk 0:00:04]}  b5 {[%clk 0:00:49]} 41. Kxf5 {[%clk 0:00:02]}  e3 {[%clk 0:00:50]} 42. g4 {[%clk 0:00:02]}  e2 {[%clk 0:00:49]} 43. Ne5+ {[%clk 0:00:03]}  Kg7 {[%clk 0:00:49]} 44. Nf3 {[%clk 0:00:02]}  Nb4 {[%clk 0:00:43]} 45. Ne1 {[%clk 0:00:02]}  a5 {[%clk 0:00:42]} 46. Kf4 {[%clk 0:00:02]}  a4 {[%clk 0:00:43]} 47. Ke3 {[%clk 0:00:03]}  a3 {[%clk 0:00:43]} 48. Kxe2 {[%clk 0:00:01]}  a2 {[%clk 0:00:44]} 0-1